bitfinex-derivatives/quotes_SOLF0:USTF0_20241029
["timestamp","ask_amount","ask_price","bid_price","bid_amount"]
[1730191736862,3.82,181.36,181.35,2.7591]
[1730191742768,6.64561632,181.36,181.33,2.7594]
[1730191743268,6.64561632,181.36,181.34,2.7593]
[1730191749760,2.82561632,181.36,181.34,2.7593]
[1730191749965,3.8,181.35,181.34,2.7593]
[1730191756373,2.7587,181.38,181.35,2.759]
[1730191756573,3.8,181.37,181.35,2.759]
[1730191756975,3.8,181.37,181.36,2.759]
[1730191757578,5.93972582,181.39,181.36,2.759]
[1730191757783,3.8,181.38,181.36,2.759]
[1730191761782,3.8,181.38,181.32,5.93972582]
[1730191761783,10.21660033,181.43,181.34,5.93972582]
[1730191761991,8.69792582,181.41,181.35,5.93972582]
[1730191763384,8.69792582,181.41,181.37,2.7587]
[1730191763593,2.7584,181.4,181.37,2.7587]
[1730191766690,8.69842582,181.38,181.34,2.7592]
[1730191766888,3.8,181.37,181.34,2.7592]
[1730191768292,3.8,181.37,181.35,2.759]
[1730191768799,3.8,181.37,181.33,5.93972582]
[1730191770389,3.8,181.37,181.35,2.759]
[1730191776299,3.8,181.37,181.33,5.93972582]
[1730191776502,3.8,181.37,181.36,2.759]
[1730191779293,3.8,181.37,181.28,349.5203]
[1730191779294,3.8,181.37,181.33,5.93972582]
[1730191779502,3.8,181.37,181.35,2.7591]
[1730191780701,2.81650499,181.36,181.28,344.0]
[1730191780897,5.57550499,181.36,181.32,2.7595]
[1730191783802,5.57550499,181.36,181.33,2.7594]
[1730191785002,2.81650499,181.36,181.33,2.7594]
[1730191785197,5.93972582,181.4,181.35,2.759]
[1730191785403,3.78,181.39,181.35,2.759]
[1730191786299,6.5386,181.39,181.35,2.759]
[1730191795819,12.47832582,181.39,181.35,2.759]
[1730191797515,2.7582,181.41,181.37,2.7588]
[1730191797823,9.71972582,181.4,181.33,5.93972582]
[1730191798013,3.78,181.39,181.33,5.93972582]
[1730191798219,3.78,181.39,181.35,8.69872582]
[1730191799622,3.78,181.39,181.36,2.7589]
[1730191803429,5.93972582,181.37,181.34,2.7592]
[1730191803631,8.64506077,181.37,181.34,2.7592]
[1730191803929,8.64506077,181.37,181.27,345.3413]
[1730191803930,8.69892582,181.35,181.3,2.7597]
[1730191804121,9.71972582,181.34,181.28,5.93972582]
[1730191804627,12.46840576,181.34,181.28,5.93972582]
[1730191805017,12.46840576,181.34,181.31,2.7597]
[1730191807127,6.52867994,181.34,181.31,2.7597]
[1730191807427,6.52867994,181.34,181.32,2.7596]
[1730191812327,3.78,181.34,181.29,5.93972582]
[1730191812524,2.817529,181.37,181.32,5.93972582]
[1730191812728,10.21660033,181.37,181.32,5.93972582]
[1730191812931,3.76,181.36,181.34,5.93972582]
[1730191813223,3.76,181.35,181.34,5.93972582]
[1730191814226,3.76,181.35,181.34,8.69902582]
[1730191815739,3.76,181.35,181.32,2.7595]
[1730191816727,3.76,181.35,181.33,2.7594]
[1730191819234,3.76,181.35,181.31,5.93972582]
[1730191819536,3.76,181.35,181.29,5.93972582]
[1730191821237,5.93972582,181.32,181.27,345.3413]
[1730191821431,3.76,181.31,181.27,1.3413]
[1730191821739,6.5197,181.31,181.27,1.3413]
[1730191822333,6.5197,181.31,181.26,2.7605]
[1730191822643,5.93972582,181.3,181.23,5.93972582]
[1730191823038,2.7601,181.29,181.26,5.93972582]
[1730191823233,5.93972582,181.34,181.28,5.93972582]
[1730191823441,3.76,181.33,181.28,5.93972582]
[1730191824245,6.5194,181.33,181.28,8.69982582]
[1730191830839,5.93972582,181.31,181.2,346.7201]
[1730191831040,5.93972582,181.31,181.23,5.93972582]
[1730191831440,2.7599,181.3,181.26,2.7604]
[1730191831641,3.76,181.29,181.26,2.7604]
[1730191832044,12.45972582,181.29,181.25,2.7606]
[1730191832246,12.45972582,181.29,181.23,5.93972582]
[1730191833038,2.7602,181.28,181.2,2.7201]
[1730191833245,2.7602,181.28,181.25,2.7605]
[1730191833545,5.93972582,181.27,181.2,2.7201]
[1730191833747,8.70012582,181.27,181.21,5.93972582]
[1730191834847,5.93972582,181.27,181.2,2.7201]
[1730191835043,8.70022582,181.26,181.2,2.7201]
[1730191835246,3.76,181.25,181.2,8.65982582]
[1730191836251,3.76,181.25,181.23,2.7609]
[1730191837251,9.69972582,181.25,181.14,5.93972582]
[1730191837455,5.93972582,181.21,181.14,5.93972582]
[1730191837646,3.78,181.2,181.14,5.93972582]
[1730191837848,3.78,181.2,181.15,2.762]
[1730191838051,3.78,181.2,181.14,5.93972582]
[1730191838243,3.78,181.19,181.16,5.93972582]
[1730191838445,3.78,181.19,181.18,2.7617]
[1730191839254,3.78,181.19,181.17,2.7617]
[1730191839451,3.78,181.19,181.14,5.93972582]
[1730191839657,1.3191,181.26,181.18,5.93972582]
[1730191839847,5.93972582,181.24,181.18,5.93972582]
[1730191840154,5.93972582,181.23,181.17,5.93972582]
[1730191840547,8.70082582,181.23,181.19,2.7614]
[1730191840747,5.93972582,181.23,181.19,2.7614]
[1730191841057,2.7611,181.22,181.19,2.7614]
[1730191841257,3.78,181.21,181.19,2.7614]
[1730191842148,3.78,181.21,181.17,5.93972582]
[1730191842149,3.78,181.21,181.2,2.7614]
[1730191845846,2.761,181.23,181.2,2.7614]
[1730191846151,3.78,181.22,181.2,2.7614]
[1730191846957,3.78,181.22,181.21,2.7612]
[1730191858161,2.75077861,181.27,181.25,2.7606]
[1730191858357,2.75077861,181.27,181.21,5.93972582]
[1730191858358,3.8,181.26,181.21,5.93972582]
[1730191858568,6.52430482,181.26,181.21,5.93972582]
[1730191859057,6.52430482,181.26,181.24,2.7607]
[1730191859463,3.8,181.26,181.24,2.7607]
[1730191860164,3.8,181.25,181.24,2.7607]
[1730191860966,17.9272,181.36,181.24,5.93972582]
[1730191861167,9.73972582,181.32,181.24,5.93972582]
[1730191861364,5.93972582,181.3,181.24,5.93972582]
[1730191861556,5.93972582,181.29,181.23,5.93972582]
[1730191861755,3.8,181.28,181.23,5.93972582]
[1730191862663,3.8,181.28,181.25,2.7606]
[1730191866866,6.5602,181.28,181.25,2.7606]
[1730191867367,2.7606,181.26,181.23,2.7609]
[1730191867573,2.75575089,181.26,181.16,345.3369]
[1730191867771,5.93972582,181.25,181.16,2.6678]
[1730191867963,6.5608,181.24,181.21,2.7612]
[1730191868164,3.8,181.24,181.19,5.93972582]
[1730191868565,3.8,181.24,181.23,2.7609]
[1730191869563,3.8,181.24,181.23,2.7608]
[1730191874982,2.7604,181.27,181.23,2.7608]
[1730191875184,3.8,181.26,181.25,5.93972582]
[1730191875885,3.8,181.26,181.23,5.93972582]
[1730191876086,3.8,181.26,181.21,5.93972582]
[1730191876589,6.5606,181.26,181.23,2.7609]
[1730191880781,2.7607,181.25,181.21,2.7611]
[1730191881383,2.7609,181.24,181.21,2.7611]
[1730191885090,3.8,181.26,181.23,2.7608]
[1730191887586,6.5605,181.26,181.23,2.7608]
[1730191887785,5.93972582,181.25,181.17,1.3672]
[1730191888097,8.70042582,181.25,181.18,5.93972582]
[1730191888393,2.7607,181.25,181.2,5.93972582]
[1730191889092,3.8,181.26,181.22,5.93972582]
[1730191890292,3.8,181.26,181.23,2.7609]
[1730191893496,2.81698983,181.27,181.22,5.93972582]
[1730191893797,3.8,181.26,181.23,5.93972582]
[1730191893990,3.8,181.25,181.23,5.93972582]
[1730191894193,3.8,181.25,181.24,2.7608]
[1730191896398,3.8,181.25,181.24,8.70052582]
[1730191897301,2.7601,181.29,181.26,2.7604]
[1730191897501,3.82,181.28,181.24,5.93972582]
[1730191897700,3.82,181.27,181.26,5.93972582]
[1730191899504,3.82,181.27,181.26,8.70022582]
[1730191902311,3.82,181.27,181.18,349.5234]
[1730191902511,3.82,181.27,181.23,5.93972582]
[1730191903806,3.82,181.27,181.26,2.7605]
[1730191904305,3.82,181.27,181.26,8.70022582]
[1730191905415,3.82,181.27,181.26,2.7605]
[1730191905706,3.82,181.27,181.26,8.70022582]
[1730191906303,2.7599,181.3,181.26,8.70022582]
[1730191906508,3.82,181.29,181.28,2.7602]
[1730191906818,3.82,181.29,181.28,8.69992582]
[1730191908310,3.82,181.29,181.28,2.7602]
[1730191915214,3.82,181.29,181.28,8.69992582]
[1730191918217,3.82,181.29,181.28,2.7602]
[1730191922325,3.82,181.29,181.28,8.69992582]
[1730191925228,3.82,181.29,181.28,2.7602]
[1730191926020,5.93972582,181.32,181.28,2.7602]
[1730191926323,6.5798,181.31,181.28,2.7602]
[1730191926525,3.82,181.31,181.28,2.7602]
[1730191927324,2.7599,181.3,181.28,2.7602]
[1730191927825,3.82,181.31,181.28,2.7602]
[1730191928431,6.5798,181.31,181.28,2.7602]
[1730191932219,6.5798,181.31,181.26,5.93972582]
[1730191932523,3.82,181.31,181.29,2.76]
[1730191936826,10.13665077,181.35,181.3,5.93972582]
[1730191937028,10.13665077,181.35,181.32,5.93972582]
[1730191937231,10.13665077,181.35,181.34,2.7593]
[1730191937430,13.93665077,181.35,181.34,2.7593]
[1730191937825,13.93665077,181.35,181.34,8.69902582]
[1730191938026,10.13665077,181.35,181.34,8.69902582]
[1730191938232,13.93665077,181.35,181.34,8.69902582]
[1730191939935,3.8,181.35,181.34,8.69902582]
[1730191942232,2.7585,181.39,181.35,2.759]
[1730191942432,3.8,181.38,181.35,2.759]
[1730191942737,3.8,181.38,181.34,5.93972582]
[1730191942929,3.8,181.37,181.35,5.93972582]
[1730191944231,3.8,181.37,181.36,2.7589]
[1730191945233,12.90006473,181.41,181.38,2.7586]
[1730191945434,3.8,181.4,181.38,2.7586]
[1730191947439,3.8,181.4,181.39,2.7585]
[1730191947644,3.8,181.4,181.37,5.93972582]
[1730191947845,3.8,181.4,181.38,5.93972582]
[1730191948248,3.8,181.4,181.39,2.7585]
[1730191948441,2.7581,181.42,181.39,2.7585]
[1730191948742,3.8,181.41,181.39,2.7585]
[1730191948952,2.7581,181.42,181.39,2.7585]
[1730191949249,3.8,181.41,181.39,2.7585]
[1730191950951,3.8,181.41,181.37,5.93972582]
[1730191951451,6.5582,181.41,181.38,2.7587]
[1730191952740,3.8,181.41,181.37,5.93972582]
[1730191953053,3.8,181.41,181.38,5.93972582]
[1730191953446,3.8,181.41,181.39,2.7585]
[1730191957155,3.8,181.4,181.39,2.7585]
[1730191958747,3.8,181.4,181.31,348.0022]
[1730191958952,6.5584,181.4,181.37,2.7587]
[1730191959750,3.8,181.4,181.37,2.7587]
[1730191959951,3.8,181.4,181.31,348.0022]
[1730191960155,3.8,181.4,181.39,5.93972582]
[1730191963458,3.8,181.4,181.38,2.7585]
[1730191963653,3.8,181.4,181.37,2.7587]
[1730191968361,3.8,181.4,181.36,5.93972582]
[1730191968558,3.8,181.4,181.37,2.7588]
[1730191968961,2.7585,181.39,181.36,2.7589]
[1730191969861,2.7585,181.39,181.37,2.7588]
[1730191971762,3.8,181.4,181.37,2.7588]
[1730191971960,6.5584,181.4,181.37,2.7588]
[1730191975565,2.7587,181.38,181.35,2.7591]
[1730191976074,5.93972582,181.39,181.33,5.93972582]
[1730191976268,8.69832582,181.39,181.36,2.7589]
[1730191976975,2.7586,181.39,181.36,2.7589]
[1730191977671,3.8,181.4,181.38,2.7586]
[1730191977867,3.8,181.4,181.36,5.93972582]
[1730191978666,3.8,181.4,181.37,2.7587]
[1730191982072,2.7585,181.39,181.36,2.759]
[1730191982674,3.82,181.38,181.36,2.759]
[1730191987381,3.82,181.38,181.33,5.93972582]
[1730191988383,6.5787,181.38,181.35,2.759]
[1730191988583,9.75972582,181.38,181.33,5.93972582]
[1730191988985,12.51842582,181.38,181.35,2.759]
[1730191991181,3.82,181.38,181.34,2.7592]
[1730191991374,3.82,181.38,181.33,5.93972582]
[1730191991580,2.76125601,181.37,181.31,8.59332582]
[1730191991879,8.69892582,181.35,181.32,2.7596]
[1730191992080,3.8,181.34,181.32,2.7596]
[1730191994393,3.8,181.34,181.31,5.93972582]
[1730191994582,3.8,181.34,181.32,2.7596]
[1730191995590,3.8,181.34,181.33,2.7594]
[1730191998689,2.7588,181.37,181.33,2.7594]
[1730191998892,2.7585,181.39,181.36,2.7589]
[1730191999092,3.8,181.38,181.36,2.7589]
[1730191999487,3.8,181.37,181.36,2.7589]
[1730191999995,3.8,181.37,181.35,2.7591]
[1730192001493,3.8,181.37,181.36,2.759]
[1730192010005,2.7583,181.41,181.38,2.7586]
[1730192010313,3.8,181.4,181.38,2.7586]
[1730192011604,2.7583,181.41,181.38,2.7586]
[1730192011805,3.8,181.4,181.39,2.7585]
[1730192012403,16.00147867,181.44,181.38,5.93972582]
[1730192012715,6.558,181.43,181.4,2.7583]
[1730192022424,3.8,181.43,181.41,2.7581]
[1730192022724,3.8,181.43,181.39,5.93972582]
[1730192023321,3.8,181.43,181.4,2.7583]
[1730192024126,9.73972582,181.43,181.4,2.7583]
[1730192024420,5.93972582,181.43,181.4,2.7583]
[1730192024626,3.8,181.42,181.4,2.7583]
[1730192025628,2.7578,181.44,181.37,5.93972582]
[1730192025824,3.8,181.43,181.41,2.7582]
[1730192029236,3.8,181.43,181.37,5.93972582]
[1730192029434,3.8,181.43,181.4,2.7583]
[1730192029435,6.5579,181.43,181.4,2.7583]
[1730192030629,5.93972582,181.41,181.38,2.7586]
[1730192031228,5.93972582,181.41,181.39,2.7585]
[1730192035338,3.8,181.4,181.39,2.7585]
[1730192036533,2.7586,181.39,181.36,2.7588]
[1730192037434,9.73972582,181.4,181.33,5.93972582]
[1730192037435,12.49812582,181.4,181.35,2.7591]
[1730192037636,5.93972582,181.38,181.32,4.0551]
[1730192038428,2.7589,181.37,181.34,2.7592]
[1730192038632,3.8,181.36,181.34,2.7592]
[1730192038829,5.93972582,181.35,181.26,1.3624]
[1730192039032,5.93972582,181.33,181.27,5.93972582]
[1730192039239,3.8,181.32,181.27,5.93972582]
[1730192039841,3.8,181.32,181.31,2.7597]
[1730192043349,6.5596,181.32,181.29,2.7599]
[1730192044144,6.5596,181.32,181.28,5.93972582]
[1730192044145,3.8,181.32,181.3,2.7599]
[1730192046439,3.8,181.32,181.31,2.7597]
[1730192047750,8.69902582,181.35,181.32,2.7595]
[1730192047951,3.8,181.34,181.32,2.7595]
[1730192048338,3.8,181.34,181.3,5.93972582]
[1730192049145,3.8,181.34,181.32,2.7594]
[1730192050244,3.8,181.35,181.32,5.93972582]
[1730192050450,3.8,181.35,181.34,5.93972582]
[1730192050850,62.3585,181.39,181.36,2.7589]
[1730192051053,3.8,181.38,181.36,2.7589]
[1730192051547,6.5588,181.38,181.35,2.7591]
[1730192051745,3.8,181.38,181.32,5.93972582]
[1730192052145,6.5587,181.38,181.35,2.759]
[1730192054552,3.8,181.37,181.35,2.759]
[1730192054961,3.8,181.37,181.32,5.93972582]
[1730192055755,3.8,181.37,181.35,2.759]
[1730192056360,3.8,181.37,181.36,2.759]
[1730192057063,2.7579,181.43,181.4,2.7583]
[1730192057258,3.8,181.42,181.4,2.7583]
[1730192058863,3.8,181.42,181.39,2.7584]
[1730192062066,3.8,181.42,181.37,5.93972582]
[1730192062266,3.8,181.42,181.4,2.7583]
[1730192062963,3.8,181.42,181.39,2.7584]
[1730192063164,3.8,181.42,181.37,5.93972582]
[1730192064458,3.8,181.42,181.39,2.7584]
[1730192065171,3.8,181.42,181.4,2.7584]
[1730192066470,3.8,181.42,181.39,2.7584]
[1730192068876,8.69812582,181.4,181.36,2.7588]
[1730192069078,5.93972582,181.38,181.33,5.93972582]
[1730192069375,3.8,181.37,181.35,2.759]
[1730192072574,6.5589,181.37,181.34,2.7593]
[1730192083775,2.759,181.36,181.33,2.7594]
[1730192083980,3.8,181.37,181.33,8.69912582]
[1730192084587,6.5589,181.37,181.34,2.7592]
[1730192088290,5.93972582,181.35,181.27,416.71326705]
[1730192088492,5.93972582,181.33,181.27,78.65299287]
[1730192088681,3.84,181.32,181.27,78.65299287]
[1730192089386,3.84,181.32,181.31,2.7597]
[1730192091487,12.53942582,181.32,181.29,2.7599]
[1730192091884,2.7598,181.31,181.28,2.7601]
[1730192093494,2.7598,181.31,181.29,2.76]
[1730192095893,2.7601,181.29,181.26,2.7604]
[1730192096096,3.84,181.28,181.24,5.93972582]
[1730192098396,3.84,181.28,181.27,2.7603]
[1730192100887,3.84,181.28,181.21,1.3986]
[1730192100888,9.77972582,181.28,181.21,1.3986]
[1730192101094,9.77972582,181.28,181.22,5.93972582]
[1730192101298,2.7603,181.27,181.24,2.7607]
[1730192101486,8.70002582,181.27,181.24,2.7607]
[1730192102091,8.70002582,181.27,181.25,2.7606]
[1730192102801,5.93972582,181.27,181.25,2.7606]
[1730192103299,5.93972582,181.27,181.24,2.7607]
[1730192103497,5.93972582,181.27,181.22,5.93972582]
[1730192103804,12.53992582,181.28,181.22,5.93972582]
[1730192103995,12.53992582,181.28,181.25,2.7606]
[1730192109505,3.84,181.28,181.26,2.7604]
[1730192110704,9.77972582,181.28,181.26,2.7604]
[1730192112398,3.84,181.28,181.27,2.7603]
[1730192115008,5.93972582,181.29,181.27,2.7603]
[1730192115200,9.75972582,181.28,181.22,5.93972582]
[1730192115398,9.75972582,181.28,181.21,1.3986]
[1730192115707,3.82,181.28,181.23,5.93972582]
[1730192115904,9.75972582,181.28,181.23,5.93972582]
[1730192116098,9.75972582,181.28,181.22,5.93972582]
[1730192116497,9.75972582,181.28,181.26,2.7604]
[1730192117904,9.75972582,181.28,181.22,5.93972582]
[1730192118100,5.93972582,181.27,181.22,5.93972582]
[1730192118296,8.70012582,181.27,181.22,5.93972582]
[1730192119410,8.70012582,181.27,181.24,2.7608]
[1730192121498,8.70012582,181.27,181.22,5.93972582]
[1730192121702,8.70012582,181.27,181.23,2.7609]
[1730192122411,8.70012582,181.27,181.24,2.7608]
[1730192123514,3.82,181.26,181.24,2.7608]
[1730192130527,3.82,181.26,181.16,2.6057]
[1730192130528,9.75972582,181.26,181.16,2.6057]
[1730192130711,5.93972582,181.22,181.16,8.54542582]
[1730192130917,3.82,181.21,181.19,2.7615]
[1730192131215,5.93972582,181.2,181.14,7.21292582]
[1730192131418,5.93972582,181.2,181.14,1.2732]
[1730192131613,2.7616,181.19,181.16,2.7619]
[1730192131921,5.93972582,181.17,181.1,344.0]
[1730192132119,126.58902624,181.21,181.09,7.22222582]
[1730192132120,5.93972582,181.15,181.09,7.22222582]
[1730192132316,3.82,181.14,181.09,7.22222582]
[1730192133223,5.93972582,181.13,181.07,1.2657]
[1730192133424,5.93972582,181.13,181.07,7.20542582]
[1730192133822,8.70222582,181.13,181.07,7.20542582]
[1730192135329,8.70222582,181.13,181.09,2.7629]
[1730192137628,5.93972582,181.11,181.1,2.7629]
[1730192158844,5.93972582,181.11,181.09,2.763]
[1730192159144,9.85972582,181.1,181.09,2.763]
[1730192159939,9.85972582,181.1,181.03,1.2825]
[1730192160142,5.93972582,181.07,181.03,1.2825]
[1730192160448,3.92,181.06,181.03,1.2825]
[1730192162452,3.92,181.06,181.05,2.7637]
[1730192162849,9.85972582,181.06,180.99,1.2994]
[1730192163551,5.93972582,181.04,181.02,2.7641]
[1730192163745,5.93972582,181.04,180.99,1.2994]
[1730192164143,5.93972582,181.04,180.99,2.7645]
[1730192164342,3.92,181.06,180.97,7.28702582]
[1730192164544,5.93972582,181.04,180.97,7.28702582]
[1730192164952,1.3711,181.13,181.02,5.93972582]
[1730192165149,5.93972582,181.1,181.03,5.93972582]
[1730192165948,3.92,181.09,181.05,5.93972582]
[1730192166451,3.92,181.09,181.08,2.7632]
[1730192169759,5.49585478,181.14,181.08,5.93972582]
[1730192170060,3.92,181.13,181.08,5.93972582]
[1730192170453,3.92,181.13,181.11,2.7628]
[1730192170646,2.5639,181.17,180.99,347.92]
[1730192170647,3.92,181.12,181.09,5.93972582]
[1730192170851,9.97972582,181.17,181.11,5.93972582]
[1730192171059,3.92,181.16,181.14,2.7623]
[1730192171653,3.92,181.16,181.13,2.7624]
[1730192173962,3.88,181.15,181.13,2.7624]
[1730192175355,3.88,181.15,181.14,2.7623]
[1730192176451,5.93972582,181.19,181.13,5.93972582]
[1730192176664,5.93972582,181.19,181.15,2.762]
[1730192176665,3.88,181.18,181.15,2.762]
[1730192176964,3.88,181.17,181.15,2.762]
[1730192177649,3.88,181.17,181.16,2.762]
[1730192178263,3.88,181.17,181.15,5.93972582]
[1730192178463,3.88,181.17,181.15,8.70182582]
[1730192179254,2.7615,181.2,181.17,2.7617]
[1730192179455,3.88,181.19,181.17,2.7617]
[1730192181071,2.7617,181.18,181.13,5.93972582]
[1730192181857,5.93972582,181.15,181.05,349.5273]
[1730192182167,9.81972582,181.14,181.08,5.93972582]
[1730192182462,3.88,181.13,181.08,5.93972582]
[1730192183265,3.88,181.13,181.11,2.7627]
[1730192184273,3.88,181.13,181.08,5.93972582]
[1730192184459,3.88,181.13,181.12,2.7626]
[1730192186667,2.7626,181.12,181.09,2.7631]
[1730192187168,8.70252582,181.11,181.08,2.7632]
[1730192187356,5.93972582,181.11,181.05,5.93972582]
[1730192187759,3.88,181.13,181.04,348.1128]
[1730192187760,5.93972582,181.09,181.04,348.1128]
[1730192187960,3.88,181.08,181.04,348.1128]
[1730192189065,3.88,181.08,181.07,2.7634]
[1730192189457,3.88,181.08,181.07,8.70312582]
[1730192190172,1.3249,181.17,181.07,5.93972582]
[1730192190367,9.81972582,181.16,181.1,5.93972582]
[1730192190573,9.81972582,181.16,181.04,348.1128]
[1730192190574,9.81972582,181.16,181.12,5.93972582]
[1730192191276,9.81972582,181.16,181.13,2.7624]
[1730192192269,3.88,181.16,181.13,2.7624]
[1730192192468,3.88,181.16,181.12,5.93972582]
[1730192192675,3.88,181.16,181.14,2.7623]
[1730192196269,5.93972582,181.15,181.12,2.7625]
[1730192196568,5.93972582,181.15,181.04,348.1128]
[1730192196870,5.93972582,181.12,181.06,5.93972582]
[1730192197170,5.93972582,181.12,181.04,348.1128]
[1730192197171,5.93972582,181.1,181.05,5.93972582]
[1730192197476,3.88,181.09,181.05,5.93972582]
[1730192197870,3.88,181.09,181.07,2.7633]
[1730192199372,9.81972582,181.09,180.99,2.6705]
[1730192199567,9.81972582,181.09,181.02,5.93972582]
[1730192200680,2.7636,181.06,181.02,2.764]
[1730192200971,3.88,181.05,181.0,5.93972582]
[1730192201167,3.88,181.05,181.03,2.7639]
[1730192205073,3.88,181.05,181.0,5.93972582]
[1730192205380,3.88,181.05,181.02,2.7641]
[1730192206784,8.70322582,181.06,181.02,2.7641]
[1730192206785,3.88,181.04,181.02,2.7641]
[1730192207174,3.88,181.04,181.03,2.764]
[1730192207669,8.70312582,181.07,181.03,2.764]
[1730192207872,2.7631,181.09,181.05,2.7635]
[1730192208079,3.88,181.08,181.05,2.7635]
[1730192208478,9.81972582,181.08,181.05,2.7635]
[1730192208677,12.58292582,181.08,181.05,2.7635]
[1730192210778,9.81972582,181.08,181.02,5.93972582]
[1730192212276,9.81972582,181.08,181.05,2.7636]
[1730192215289,9.81972582,181.08,181.06,2.7635]
[1730192215788,3.88,181.08,181.06,2.7635]
[1730192217787,3.88,181.08,181.04,5.93972582]
[1730192217979,3.88,181.08,181.05,2.7635]
[1730192220285,3.88,181.08,181.04,5.93972582]
[1730192220482,3.88,181.08,181.07,5.93972582]
[1730192220483,3.9,181.08,181.07,5.93972582]
[1730192220688,1.3336,181.13,181.07,5.93972582]
[1730192220689,3.9,181.09,181.07,5.93972582]
[1730192221089,3.9,181.09,181.05,5.93972582]
[1730192222091,3.9,181.09,181.07,2.7633]
[1730192223594,3.88,181.08,181.07,2.7633]
[1730192233003,9.81972582,181.08,181.0,344.0]
[1730192233197,9.81972582,181.08,181.01,5.93972582]
[1730192234594,8.70332582,181.06,181.03,2.7639]
[1730192234799,5.93972582,181.06,181.0,345.2743]
[1730192235103,3.88,181.08,181.0,345.2743]
[1730192235104,5.93972582,181.05,181.0,345.2743]
[1730192235294,3.88,181.04,181.01,2.7643]
[1730192237506,6.644,181.04,181.01,2.7643]
[1730192238595,3.88,181.04,181.02,5.93972582]
[1730192238801,3.88,181.04,181.03,2.764]
[1730192239701,3.88,181.04,181.02,5.93972582]
[1730192239907,6.6439,181.04,181.01,2.7642]
[1730192240097,3.88,181.04,181.0,1.2743]
[1730192240298,3.88,181.04,181.02,2.7641]
[1730192241703,6.6439,181.04,181.01,2.7643]
[1730192243311,5.93972582,181.02,180.93,344.0]
[1730192243609,2.7644,181.01,180.98,2.7647]
[1730192243804,3.88,181.0,180.98,2.7647]
[1730192244001,6.6445,181.0,180.95,2.7651]
[1730192244200,12.58422582,181.0,180.94,7.22862582]
[1730192244407,9.81972582,181.0,180.94,7.22862582]
[1730192244607,2.7646,180.99,180.97,2.7649]
[1730192244911,9.81972582,181.0,180.97,2.7649]
[1730192246401,3.88,181.0,180.96,5.93972582]
[1730192247309,3.88,181.0,180.98,2.7647]
[1730192247705,3.88,181.0,180.96,5.93972582]
[1730192248609,3.88,181.0,180.97,2.7649]
[1730192248808,3.88,181.0,180.96,5.93972582]
[1730192249714,3.88,181.0,180.99,2.7646]
[1730192257621,3.88,181.06,180.99,5.93972582]
[1730192257823,3.88,181.05,181.03,5.93972582]
[1730192258018,3.88,181.06,181.03,5.93972582]
[1730192258321,5.93972582,181.11,181.05,5.93972582]
[1730192258525,3.88,181.09,181.05,5.93972582]
[1730192258722,3.88,181.09,181.06,2.7634]
[1730192260024,10.04111267,181.14,181.05,5.93972582]
[1730192260214,3.88,181.13,181.08,5.93972582]
[1730192261117,6.6425,181.13,181.09,2.763]
[1730192261420,9.81972582,181.13,181.01,1.3948]
[1730192261624,9.81972582,181.13,181.06,5.93972582]
[1730192262027,2.7628,181.11,181.07,2.7632]
[1730192262421,9.81972582,181.13,181.06,5.93972582]
[1730192262625,2.7627,181.12,181.08,2.7632]
[1730192265624,2.7627,181.12,181.09,5.93972582]
[1730192265821,3.88,181.13,181.11,8.70242582]
[1730192266735,3.88,181.13,181.11,5.93972582]
[1730192268334,3.88,181.13,181.11,8.70242582]
[1730192268517,3.92,181.12,181.11,8.70242582]
[1730192269022,3.92,181.12,181.11,8.70252582]